Cogmind - Beta 12 X2 @@@ ROGUE MODE // 2022.09.07 @ 16:17:51 Player: ArabianSandBoa Result: Smashed by cave-in Performance ------------- Evolutions (5) 2500 Regions Visited (15) 3000 Robots Destroyed (300) 1500 Value Destroyed (16195) 16195 Prototype IDs (39) 780 Alien Tech Used (0) 0 Bonus (13834) 13834 TOTAL SCORE: 37809 Bonus ------- High Alert Combat Kills 3303 Follower Combat Kills 275 Entered Garrisons 400 Aligned with FarCom 300 Met Warlord at Base 500 MAIN.C Attacked Warlord 500 Warlord Defense Kills 10278 Friendly Fire -1722 Cogmind --------- Core Integrity 0/1000 Matter 300/300 Energy 98/100 System Corruption 30% Temperature Cool (0) Movement Core (50) Location -5/Warlord Parts ------- > --- POWER (3) -------- (None) > --- PROPULSION (6) --- (None) > --- UTILITY (5) ------ (None) > --- WEAPON (3) ------- (None) > --- INVENTORY (5) ---- (None) Peak State ------------ > --- POWER ------------ Multi-Antimatter Reactor > --- PROPULSION ------- Flying ITA-Antigrav Exoskeleton > --- UTILITY ---------- Armored Scrap Engine Advanced Heat Sink High-capacity Storage Unit Improved Energy Mantle > --- WEAPON ----------- Shotgun Charged Tesla Construct/C Vortex Lance > --- INVENTORY -------- Power Amplifier Encrypted Comm Array 0b10 Decoder Chip [Looter] Experimental Core Analyzer Quantum Capacitor Improved Focal Shield Improved Thermal Shield Improved System Shield Wardrone Bay Segregator [Rating: 129] Favorites ----------- Power Multi-Antimatter Reactor Engine Light Ion Engine Power Core Light Nuclear Core Reactor Multi-Antimatter Reactor Propulsion Flying ITA-Antigrav Exoskeleton Treads Light Treads Leg VSS Leg Wheel Wheel Flight Unit Flying ITA-Antigrav Exoskeleton Utility High-capacity Storage Unit Device Armored Scrap Engine Storage High-capacity Storage Unit Processor Target Analyzer Hackware System Shield Protection Layered Medium Armor Plating Weapon Shotgun Charged Tesla Construct/C Energy Gun Lightning Gun Energy Cannon Shotgun Charged Tesla Construct/C Ballistic Gun Gauss Rifle Ballistic Cannon AWS/Autocannon Impact Weapon Hammer Slashing Weapon Scythe Piercing Weapon Vortex Lance Build | -11 -10 -9 -9 -9 -8 -8 -8 -8 -7 -6 -6 -5 -5 -5 -5 ------- Run | Scr Mat Mat Min Exi Min Mat Gar Mat Fac Fac Gar Fac Upp Upp War Slots Evolved 10 | . . 2 . . . 2 . . 2 2 . 2 . . . Power 2 | . . . . . . . . . 1 . . 1 . . . Propulsion 4 | . . 1 . . . . . . 1 1 . 1 . . . Utility 3 | . . 1 . . . 1 . . . 1 . . . . . Weapon 1 | . . . . . . 1 . . . . . . . . . Parts Attached 75 | 4 3 6 3 1 2 3 17 4 4 . 5 3 2 3 15 Power 4 | . . 1 . . . . 2 . 1 . . . . . . Engine 2 | . . 1 . . . . 1 . . . . . . . . Core 2 | . . . . . . . 1 . 1 . . . . . . Reactor . | . . . . . . . . . . . . . . . . Propulsion 14 | 2 1 3 1 . 2 . 5 . . . . . . . . Treads 5 | 2 . . . . . . 3 . . . . . . . . Leg 1 | . . . . . . . 1 . . . . . . . . Wheel 5 | . 1 . 1 . 2 . 1 . . . . . . . . Hover . | . . . . . . . . . . . . . . . . Flight 3 | . . 3 . . . . . . . . . . . . . Utility 39 | . 1 1 2 1 . 3 . 2 3 . 5 3 2 3 13 Device 24 | . . 1 1 . . . . . 2 . 3 3 2 1 11 Storage 8 | . 1 . 1 1 . . . 2 1 . . . . 1 1 Processor 2 | . . . . . . . . . . . 1 . . 1 . Hackware 4 | . . . . . . 3 . . . . . . . . 1 Protection 1 | . . . . . . . . . . . 1 . . . . Artifact . | . . . . . . . . . . . . . . . . Weapon 18 | 2 1 1 . . . . 10 2 . . . . . . 2 Energy Gun 4 | 1 . . . . . . 1 2 . . . . . . . Energy Cannon . | . . . . . . . . . . . . . . . . Ballistic Gun 4 | 1 . . . . . . 3 . . . . . . . . Ballistic Cannon 2 | . . . . . . . 2 . . . . . . . . Launcher . | . . . . . . . . . . . . . . . . Special Weapon . | . . . . . . . . . . . . . . . . Impact Weapon 1 | . 1 . . . . . . . . . . . . . . Slashing Weapon 5 | . . 1 . . . . 4 . . . . . . . . Piercing Weapon 2 | . . . . . . . . . . . . . . . 2 Special Melee Weapon . | . . . . . . . . . . . . . . . . Unidentified Prototypes 8 | . . . 1 . . . . 1 . . . 1 . . 5 Corrupted Parts 1 | . . . . . . . . . . . . . 1 . . System Corruption 6 | . . . . . . . . . . . . . 6 . . Parts Lost 28 | . . . . . 1 . 4 . 4 . 3 . . . 16 Power 8 | . . . . . . . 2 . 2 . . . . . 4 Propulsion 11 | . . . . . 1 . 2 . 1 . 1 . . . 6 Utility 5 | . . . . . . . . . 1 . 1 . . . 3 Weapon 4 | . . . . . . . . . . . 1 . . . 3 Highest Loss Streak 13 | . . . . . 1 . 2 . 3 . 2 . . . 13 To Critical Strikes 1 | . . . . . 1 . . . . . . . . . . Average Slot Usage (%) 58 | . 68 64 98 100 99 79 88 91 40 26 47 40 35 39 38 Engine 2 | . . 6 11 11 11 9 1 . 4 . 1 1 2 2 . Core 3 | . . . . . . . 6 9 3 . 3 2 . . 1 Treads 4 | . 19 4 . . . . 12 27 2 . . 1 . . . Leg 1 | . . . . . . . 5 . . . . . 3 4 . Wheel 3 | . 8 4 2 11 20 18 4 . 4 6 . . . . . Hover 1 | . . . . . . . . . 1 . 5 . . . 1 Flight 2 | . . 20 30 22 12 . . . . . . 3 . . 2 Device 8 | . . . 20 22 22 2 . . 7 6 12 15 11 10 10 Storage 7 | . 11 11 11 11 11 9 9 9 6 6 6 5 5 5 4 Hackware 7 | . . . . . . 23 27 18 . . . . . . 3 Energy Gun 1 | . 14 5 . . . . 4 9 . . 4 . . . . Ballistic Gun 2 | . 5 . . . . . 9 18 . . . . . . . Ballistic Cannon 3 | . . . . . . . 2 . 6 6 2 2 1 4 3 Impact Weapon 1 | . 8 11 11 11 11 9 . . . . . . . . . Slashing Weapon 1 | . . 3 11 11 11 9 4 . . . . . . . . Naked Turns 1 | . . . . . . . . . . . . . . . 1 Heaviest Build 229 | 3 9 12 28 48 48 48 109 217 229 51 78 104 104 104 117 Greatest Support 278 | 3 10 21 21 16 36 26 60 60 85 54 151 278 198 148 181 Greatest Overweight (x) 33 | . . 1 1 2 2 2 33 3 3 . 1 . . . 1 Average Overweight (x) . | . . . . 1 1 1 3 1 2 . . . . . . Largest Inventory Capacity 35 | 5 8 8 15 20 20 20 20 35 35 20 20 20 20 20 20 Average Capacity 21 | 5 6 8 9 18 20 20 20 27 34 20 20 20 20 20 19 Most Carried 28 | 5 5 8 11 16 19 19 20 25 28 5 17 20 20 20 20 Average Carried 16 | 3 4 6 8 14 18 18 19 22 13 4 7 18 19 19 18 Final Capacity 35 | 5 8 8 15 20 20 20 20 35 20 20 20 20 20 20 5 Final Carried 25 | 5 5 8 11 16 19 18 20 25 4 3 16 18 20 20 . Class Distribution -------------------- 25% | Generator-Construct 19% | Construct 16% | Hacker-Skirmisher 12% | Hauler-Construct 10% | Mutant 8% | Hacker-Mutant 3% | Hauler-Mutant Dominant Class ---------------- Mutant | -10/Materials Sprinter | -9/Materials Sprinter | -9/Mines Mutant | -9/Exiles Assassin | -8/Mines Hacker-Mutant | -8/Materials Hacker-Skirmisher | -8/Garrison Hacker-Skirmisher | -8/Materials Hauler-Construct | -7/Factory Mutant | -6/Factory Construct | -6/Garrison Construct | -5/Factory Generator-Construct | -5/Upper Caves Generator-Construct | -5/Upper Caves Generator-Construct | -5/Warlord Resources | -11 -10 -9 -9 -9 -8 -8 -8 -8 -7 -6 -6 -5 -5 -5 -5 ----------- Run | Scr Mat Mat Min Exi Min Mat Gar Mat Fac Fac Gar Fac Upp Upp War Matter Collected 5585 | 199 . 132 30 . 30 . 405 208 463 . 896 402 478 557 1785 Remotely . | . . . . . . . . . . . . . . . . Salvage Created 17979 | 100 . 103 44 . 39 . 1010 440 1984 . 2364 2876 2074 1942 5003 Parts 592 | 1 . 11 6 . 9 . 40 25 88 . 77 60 58 63 154 Haulers Intercepted 6 | . . 2 . . . . . 1 1 . . 2 . . . Recyclers Shooed 2 | . . . . . . . . . 1 . . 1 . . . Parts Field Recycled . | . . . . . . . . . . . . . . . . Retrieved Matter . | . . . . . . . . . . . . . . . . Parts Self-Destructed 72 | . . . . . . . . . . . . . 25 47 . Prevented 10 | . . . . . . . . . . . . . 10 . . Kills | -11 -10 -9 -9 -9 -8 -8 -8 -8 -7 -6 -6 -5 -5 -5 -5 ------- Run | Scr Mat Mat Min Exi Min Mat Gar Mat Fac Fac Gar Fac Upp Upp War Combat Hostiles Destroyed 248 | . . . 1 . . . 29 7 22 . 36 26 22 21 84 Melee 17 | . . . 1 . . . 1 . . . . . . . 15 Guns 40 | . . . . . . . 9 7 . . 24 . . . . Cannons 169 | . . . . . . . 19 . 19 . 10 19 22 21 59 AOE 3 | . . . . . . . . . 3 . . . . . . Classes Destroyed 26 | 1 . 2 2 . . . 3 2 6 . 3 2 2 1 2 Worker 7 | . . . . . . . . . 3 . . 4 . . . Builder 8 | . . . . . . . . . 6 . . 2 . . . Tunneler 4 | . . . 1 . 2 . . . . . . 1 . . . Hauler 6 | . . 2 . . . . . 1 1 . . 2 . . . Recycler 13 | 1 . . . . . . . 1 7 . . 4 . . . Carrier 1 | . . . . . . . . . . . . 1 . . . Minesweeper 1 | . . . . . . . . . . . . . . 1 . Mechanic 3 | . . . . . . . . . 2 . . 1 . . . Operator 1 | . . 1 . . . . . . . . . . . . . Watcher 6 | . . . . . . . . 1 . . 1 4 . . . Swarmer 26 | . . . 1 . . . 3 3 . . 10 . 1 4 4 Saboteur 6 | . . . . . . . . . . . . 1 . . 5 Grunt 103 | . . . . . . . 19 . 9 . 8 12 12 12 31 Brawler 20 | . . . . . . . . . 2 . 5 2 4 2 5 Duelist 13 | . . . . . . . . . 3 . 3 3 1 1 2 Protector 6 | . . . . . . . . . . . 1 1 . . 4 Sentry 21 | . . . . . . . 5 1 5 . 5 1 3 1 . Demolisher 6 | . . . . . . . . . . . 1 . . . 5 Specialist 6 | . . . . . . . 2 2 . . . . . . 2 Hunter 8 | . . . . . . . . 1 . . . 1 . . 6 Programmer 20 | . . . . . . . . . 3 . . 5 2 . 10 Behemoth 4 | . . . . . . . . . . . 3 . . 1 . Striker 6 | . . . . . . . . . . . . . . . 6 Executioner 2 | . . . . . . . . . . . . . . . 2 Packrat 2 | . . . . . . . . . . . . . . 2 . Samaritan 6 | . . . . . . . . . . . . . 1 5 . Thug 4 | . . . . . . . . . . . . . . . 4 Savage 1 | . . . . . . . . . . . . . 1 . . Mutant 1 | . . . . . . . . . . . . . 1 . . Best Kill Streak 32 | 1 . 3 1 . 1 . 6 3 11 . 8 12 6 9 32 Combat Bots Only 32 | . . . 1 . . . 6 3 9 . 8 9 5 9 32 Max Kills in Single Turn 2 | 1 . 1 1 . 1 . 1 2 2 . 2 2 2 2 2 Gunslinging . | . . . . . . . . . . . . . . . . Exploded 2 | . . . . . . . . . 2 . . . . . . Melee 1 | . . . 1 . . . 1 . . . . . . . 1 Uniques/NPCs Destroyed . | . . . . . . . . . . . . . . . . Combat | -11 -10 -9 -9 -9 -8 -8 -8 -8 -7 -6 -6 -5 -5 -5 -5 -------- Run | Scr Mat Mat Min Exi Min Mat Gar Mat Fac Fac Gar Fac Upp Upp War Damage Taken 12136 | . . . 20 . 166 . 948 247 2185 20 1589 728 74 565 5594 Core 1847 | . . . 7 . 45 . 217 50 312 . 212 131 17 66 790 Absorbed by Shields 975 | . . . . . . . 43 . . . . . . . 932 Core Remaining (%) 78 | 100 100 . . . 87 . . 51 55 . 75 . . . . Volleys Fired 597 | 2 . . . . . . 36 20 79 3 132 67 39 63 156 Largest 3 | 2 . . . . . . 3 3 2 1 2 1 1 1 1 Hottest 140 | 60 . . . . . . 111 111 140 82 118 82 42 42 42 Shots Fired 747 | 3 . . . . . . 130 60 87 3 142 67 39 62 154 Gun 237 | 3 . . . . . . 76 60 . . 97 1 . . . Cannon 510 | . . . . . . . 54 . 87 3 45 66 39 62 154 Launcher . | . . . . . . . . . . . . . . . . Special . | . . . . . . . . . . . . . . . . Kinetic 404 | 1 . . . . . . 109 40 74 3 45 15 . 57 60 Thermal 196 | . . . . . . . . . 12 . 97 1 26 5 55 Explosive . | . . . . . . . . . . . . . . . . Electromagnetic 147 | 2 . . . . . . 21 20 1 . . 51 13 . 39 Robot Hit Streak 21 | 2 . . . . . . 21 9 9 . 18 10 16 9 10 Robot Miss Streak 10 | . . . . . . . 3 5 5 . 7 8 5 10 9 Penetration Max 2 | . . . . . . . 1 . . . 1 1 . 1 2 Secondary Targets 2 | . . . . . . . 2 . . . . . . . . Max Gunslinging Chain 1 | . . . . . . . 1 . . . . . . . . Capacitor 39 | . . . . . . . . . . . . . 25 5 9 Autonomous 54 | . . . . . . . 54 . . . . . . . . Shots Hit Robots 543 | 2 . 3 3 . 2 . 68 30 69 . 113 42 37 39 135 Core Hits 356 | 1 . 3 2 . 1 . 28 14 56 . 88 28 25 25 85 Critical Kills 38 | . . . . . . . . . . . . 4 . 6 28 Critical Parts Destroyed 58 | . . . . . . . . . 1 . . 4 . 8 45 Critical Strikes 128 | . . . . . . . 9 . 10 . 5 9 . 14 81 Destroy 100 | . . . . . . . . . 1 . . 9 . 14 76 Blast 21 | . . . . . . . 7 . 9 . 5 . . . . Corrupt 2 | . . . . . . . 2 . . . . . . . . Sunder 5 | . . . . . . . . . . . . . . . 5 Melee Attacks 61 | . 2 3 13 . 2 . 16 . . . . . . . 25 Impact 4 | . 2 . 2 . . . . . . . . . . . . Slashing 32 | . . 3 11 . 2 . 16 . . . . . . . . Piercing . | . . . . . . . . . . . . . . . . Entropic 25 | . . . . . . . . . . . . . . . 25 Sneak Attacks 5 | . . 2 1 . 2 . . . . . . . . . . Combat Hostiles . | . . . . . . . . . . . . . . . . Follow-up Attacks . | . . . . . . . . . . . . . . . . Damage Inflicted 50130 | 30 . 173 133 . 127 . 4406 661 5288 . 7265 7380 5657 3804 15206 Guns 6855 | 30 . . . . . . 604 598 . . 5623 . . . . Cannons 39813 | . . . . . . . 3693 . 4600 . 1642 6962 5657 3804 13455 Explosions 1216 | . . . . . . . 47 63 688 . . 418 . . . Melee 2246 | . . 173 133 . 127 . 62 . . . . . . . 1751 Ramming . | . . . . . . . . . . . . . . . . Kinetic 20496 | . . . . . . . 4100 346 4288 . 1642 767 . 3274 6079 Thermal 15474 | . . . . . . . . 63 1000 . 5623 213 4121 530 3924 Explosive 252 | . . . . . . . 47 . . . . 205 . . . Electromagnetic 11662 | 30 . . . . . . 197 252 . . . 6195 1536 . 3452 Impact . | . . . . . . . . . . . . . . . . Slashing 495 | . . 173 133 . 127 . 62 . . . . . . . . Piercing . | . . . . . . . . . . . . . . . . Entropic 1751 | . . . . . . . . . . . . . . . 1751 Highest Corruption 30 | . . . . . . . 1 1 . 1 6 1 7 7 30 Average Corruption 5 | . . . . . . . 1 1 . 1 5 1 1 7 14 Corruption Purged . | . . . . . . . . . . . . . . . . Corruption Blocked 3 | . . . . . . . . . . . . . . . 3 Effects 89 | . . . . . . . 2 3 . . 32 2 7 17 26 Message Errors 19 | . . . . . . . . 2 . . 8 . 2 5 2 Matter Fused 16 | . . . . . . . . 1 . . 5 . 2 2 6 Heat Flow Errors 15 | . . . . . . . . . . . 10 1 1 2 1 Energy Discharges 6 | . . . . . . . 1 . . . 2 . . 2 1 Parts Rejected 3 | . . . . . . . . . . . . . . . 3 Data Loss (minor) 16 | . . . . . . . . . . . 5 1 2 3 5 Data Loss (major) 7 | . . . . . . . 1 . . . 2 . . 2 2 Alerts 1 | . . . . . . . . . . . . . . . 1 Misdirections 3 | . . . . . . . . . . . . . . . 3 Weapon Failures 3 | . . . . . . . . . . . . . . 1 2 Overload Shots . | . . . . . . . . . . . . . . . . Overflow Damage 5049 | . . . . . 32 . 466 . 170 . 26 1568 772 644 1371 Projectiles 4834 | . . . . . . . 466 . 149 . 26 1508 772 644 1269 Explosions 81 | . . . . . . . . . 21 . . 60 . . . Melee 134 | . . . . . 32 . . . . . . . . . 102 Knockbacks 104 | . . . . . . . 21 . 29 . 4 3 . 15 32 Impact . | . . . . . . . . . . . . . . . . Kinetic 93 | . . . . . . . 19 . 26 . 4 2 . 13 29 Secondary 11 | . . . . . . . 2 . 3 . . 1 . 2 3 Self-Inflicted Damage 302 | . . . . . . . . . 57 . . 245 . . . Shots 7 | . . . . . . . . . 2 . . 5 . . . Rammed . | . . . . . . . . . . . . . . . . Targets Rammed . | . . . . . . . . . . . . . . . . Kicked . | . . . . . . . . . . . . . . . . Crushed . | . . . . . . . . . . . . . . . . Highest Temperature 440 | 10 . . . . . . 141 219 440 12 403 142 237 405 376 Average Temperature 100 | 7 . . . . . . 54 69 130 9 80 27 66 110 125 Received Heat Transfer 2486 | . . . . . . . 396 18 975 9 348 72 30 198 440 Effects 22 | . . . . . . . . . 7 . . . 3 4 8 Shutdowns 3 | . . . . . . . . . 2 . . . . 1 . Energy Bleed 7 | . . . . . . . . . 1 . . . . 1 5 Interference 8 | . . . . . . . . . 3 . . . 3 . 2 Short Circuit 1 | . . . . . . . . . . . . . . . 1 Damage (minor) 3 | . . . . . . . . . 1 . . . . 2 . Siege Activations . | . . . . . . . . . . . . . . . . Robots Corrupted 19 | . . . . . . . . . . . . 10 1 . 8 Combat Hostiles 15 | . . . . . . . . . . . . 7 . . 8 Parts Fried 99 | . . . . . . . . 2 . . . 63 8 . 26 Impact Corruptions 2 | . . . . . . . . . . . . . . . 2 Robots Melted 3 | . . . . . . . . . . . 3 . . . . Combat Hostiles 2 | . . . . . . . . . . . 2 . . . . Parts Melted 30 | . . . . . . . . . 1 . 21 . 2 . 6 Heat Transferred 12383 | . . . . . . . . . 1007 . 7438 150 1554 185 2049 Parts Sabotaged 10 | . . . . . . . . . . . . . . . 10 Parts Stolen . | . . . . . . . . . . . . . . . . Parts Stripped . | . . . . . . . . . . . . . . . . Power Chain Reactions 9 | . . . . . . . . 1 6 . . 2 . . . Missiles Intercepted . | . . . . . . . . . . . . . . . . Alert | -11 -10 -9 -9 -9 -8 -8 -8 -8 -7 -6 -6 -5 -5 -5 -5 ------- Run | Scr Mat Mat Min Exi Min Mat Gar Mat Fac Fac Gar Fac Upp Upp War Peak Influence 2207 | 5 9 67 98 . 10 6 2007 1203 1224 647 1816 2207 . . . Initial 978 | . 3 3 25 . . . 5 978 546 584 455 953 . . . Average 895 | 1 5 16 58 . 3 1 835 1064 909 621 1159 1223 . . . Maximum Alert Level 5 | . . . . . . . 5 4 4 2 5 5 . . . Low Security (%) 11 | 100 100 100 100 . 100 100 8 . . . . . . . . Level 1 2 | . . . . . . . 6 . . . . . . . . Level 2 21 | . . . . . . . 30 . 24 100 22 1 . . . Level 3 39 | . . . . . . . 28 70 71 . 21 54 . . . Level 4 17 | . . . . . . . 16 29 4 . 41 22 . . . Level 5 8 | . . . . . . . 8 . . . 13 22 . . . High Security . | . . . . . . . . . . . . . . . . Max Security . | . . . . . . . . . . . . . . . . Squads Dispatched 24 | . . . . . . . . 3 11 1 . 9 . . . Investigation 5 | . . . . . . . . . . 1 . 4 . . . Extermination 4 | . . . . . . . . . 3 . . 1 . . . Reinforcement 3 | . . . . . . . . 2 1 . . . . . . Assault 9 | . . . . . . . . . 5 . . 4 . . . Garrison 3 | . . . . . . . . 1 2 . . . . . . Intercept . | . . . . . . . . . . . . . . . . Searches Triggered . | . . . . . . . . . . . . . . . . Construction Impeded . | . . . . . . . . . . . . . . . . Haulers Reinforced . | . . . . . . . . . . . . . . . . Active Scanning Responses . | . . . . . . . . . . . . . . . . Cargo Convoy Interrupts . | . . . . . . . . . . . . . . . . Stealth | -11 -10 -9 -9 -9 -8 -8 -8 -8 -7 -6 -6 -5 -5 -5 -5 --------- Run | Scr Mat Mat Min Exi Min Mat Gar Mat Fac Fac Gar Fac Upp Upp War Distress Signals 3 | . . . . . . 1 . 1 . . 1 . . . . Communications Jammed . | . . . . . . . . . . . . . . . . Distress Signals . | . . . . . . . . . . . . . . . . Times Spotted 405 | . . 2 3 . 4 2 36 11 41 3 44 33 17 20 189 Peak Tracking Total 40 | . . 2 3 . 4 4 5 4 7 3 7 6 4 7 40 Tactical Retreats 22 | . . . 1 . . . 2 . 1 2 1 . . 3 12 Traps | -11 -10 -9 -9 -9 -8 -8 -8 -8 -7 -6 -6 -5 -5 -5 -5 ------- Run | Scr Mat Mat Min Exi Min Mat Gar Mat Fac Fac Gar Fac Upp Upp War Traps Triggered 12 | . . . . . . . 6 . 1 . 3 . . . 2 Indirectly . | . . . . . . . . . . . . . . . . Trap Hack Attempts . | . . . . . . . . . . . . . . . . Triggered . | . . . . . . . . . . . . . . . . Disarmed . | . . . . . . . . . . . . . . . . Reprogrammed . | . . . . . . . . . . . . . . . . Reused . | . . . . . . . . . . . . . . . . Traps Extracted . | . . . . . . . . . . . . . . . . Installed 3 | . . . 3 . . . . . . . . . . . . Triggered 31 | . . . . . . . . . . . . . . 1 30 Machines | -11 -10 -9 -9 -9 -8 -8 -8 -8 -7 -6 -6 -5 -5 -5 -5 ---------- Run | Scr Mat Mat Min Exi Min Mat Gar Mat Fac Fac Gar Fac Upp Upp War Machines Disabled 77 | . . . . . . . 11 . 13 1 18 29 1 1 3 Max in Single Turn 6 | . . . . . . . 2 . 2 1 2 6 1 1 2 Garrison Access 1 | . . . . . . . . . 1 . . . . . . Garrison Relay 8 | . . . . . . . 5 . . . 3 . . . . Phase Generator 2 | . . . . . . . 1 . . . 1 . . . . Machines Sabotaged . | . . . . . . . . . . . . . . . . Overloaded Fab Kills . | . . . . . . . . . . . . . . . . Hacking | -11 -10 -9 -9 -9 -8 -8 -8 -8 -7 -6 -6 -5 -5 -5 -5 --------- Run | Scr Mat Mat Min Exi Min Mat Gar Mat Fac Fac Gar Fac Upp Upp War Machines Accessed 22 | . . . . 1 . 3 3 . 1 2 1 7 1 . 3 Terminals 10 | . . . . . . 2 3 . . 1 1 3 . . . Fabricators 3 | . . . . . . . . . 1 . . 2 . . . Repair Stations . | . . . . . . . . . . . . . . . . Recycling Units 2 | . . . . . . . . . . . . 2 . . . Scanalyzers . | . . . . . . . . . . . . . . . . Garrison Access 2 | . . . . . . 1 . . . 1 . . . . . Total Hacks 63 | . . . . 1 . 13 9 . 1 3 3 26 1 . 6 Successful 34 | . . . . 1 . 5 3 . 1 1 1 15 1 . 6 Failed 29 | . . . . . . 8 6 . . 2 2 11 . . . Catastrophic 8 | . . . . . . 1 2 . . 2 1 2 . . . Database Lockouts . | . . . . . . . . . . . . . . . . Manual 16 | . . . . 1 . 2 3 . . . . 10 . . . Terminals 39 | . . . . . . 12 9 . . 2 3 13 . . . Fabricators 4 | . . . . . . . . . 1 . . 3 . . . Repair Stations . | . . . . . . . . . . . . . . . . Recycling Units 10 | . . . . . . . . . . . . 10 . . . Scanalyzers . | . . . . . . . . . . . . . . . . Garrison Access 2 | . . . . . . 1 . . . 1 . . . . . Terminal Hacks 24 | . . . . 1 . 4 3 . . . 1 8 1 . 6 Record 5 | . . . . . . . . . . . . . . . 5 Part Schematic 1 | . . . . . . . . . . . . 1 . . . Robot Analysis 1 | . . . . . . 1 . . . . . . . . . Prototype ID Bank 2 | . . . . . . 1 . . . . . 1 . . . Open Door 3 | . . . . . . . 1 . . . . . 1 . 1 Open DSF 1 | . . . . . . . . . . . . 1 . . . Level Access Points 1 | . . . . . . 1 . . . . . . . . . Branch Access Points 1 | . . . . . . . . . . . . 1 . . . Emergency Access Points 3 | . . . . . . . 1 . . . 1 1 . . . Alert Level 1 | . . . . . . 1 . . . . . . . . . Unreport Threat 1 | . . . . . . . . . . . . 1 . . . Hauler Manifests 1 | . . . . . . . . . . . . 1 . . . Zone Layout 1 | . . . . . . . . . . . . 1 . . . Security Stations 1 | . . . . . . . 1 . . . . . . . . EX-Prototype ID Bank 1 | . . . . 1 . . . . . . . . . . . Fabricator Hacks 4 | . . . . . . . . . 1 . . 3 . . . Load Schematic 1 | . . . . . . . . . . . . 1 . . . Build 3 | . . . . . . . . . 1 . . 2 . . . Repair Station Hacks . | . . . . . . . . . . . . . . . . Recycling Unit Hacks 2 | . . . . . . . . . . . . 2 . . . Retrieve Components 2 | . . . . . . . . . . . . 2 . . . Scanalyzer . | . . . . . . . . . . . . . . . . Garrison Access Hacks 2 | . . . . . . 1 . . . 1 . . . . . Unlock Access 2 | . . . . . . 1 . . . 1 . . . . . Unauthorized Hacks 2 | . . . . . . . . . . . . 2 . . . Terminals . | . . . . . . . . . . . . . . . . Fabricators . | . . . . . . . . . . . . . . . . Repair Stations . | . . . . . . . . . . . . . . . . Recycling Units 2 | . . . . . . . . . . . . 2 . . . Monitor 1 | . . . . . . . . . . . . 1 . . . Reject 1 | . . . . . . . . . . . . 1 . . . Scanalyzers . | . . . . . . . . . . . . . . . . Garrison Access . | . . . . . . . . . . . . . . . . Data Cores Recovered 1 | . . 1 . . . . . . . . . . . . . Used . | . . . . . . . . . . . . . . . . Hacking Detections 11 | . . . . . . 2 2 . . 1 1 5 . . . Full Trace Events 8 | . . . . . . . 2 . . 1 1 4 . . . Feedback Events 1 | . . . . . . . . . . 1 . . . . . Corruption 1 | . . . . . . . . . . 1 . . . . . Feedback Blocked . | . . . . . . . . . . . . . . . . Robot Schematics Acquired . | . . . . . . . . . . . . . . . . Robots Built . | . . . . . . . . . . . . . . . . Authchips . | . . . . . . . . . . . . . . . . Time . | . . . . . . . . . . . . . . . . Total Robot Build Rating . | . . . . . . . . . . . . . . . . Part Schematics Acquired 1 | . . . . . . . . . . . . 1 . . . Parts Built 6 | . . . . . . . . . 2 . . 4 . . . Authchips . | . . . . . . . . . . . . . . . . Time 217 | . . . . . . . . . 42 . . 175 . . . Total Part Build Rating 36 | . . . . . . . . . 8 . . 28 . . . Parts Repaired . | . . . . . . . . . . . . . . . . Time . | . . . . . . . . . . . . . . . . Parts Recycled . | . . . . . . . . . . . . . . . . Recycled Matter . | . . . . . . . . . . . . . . . . Retrieved Matter . | . . . . . . . . . . . . . . . . Retrieved Components 5 | . . . . . . . . . . . . 5 . . . Parts Scanalyzed . | . . . . . . . . . . . . . . . . Part Schematics Acquired . | . . . . . . . . . . . . . . . . Parts Damaged . | . . . . . . . . . . . . . . . . Bothacking | -11 -10 -9 -9 -9 -8 -8 -8 -8 -7 -6 -6 -5 -5 -5 -5 ------------ Run | Scr Mat Mat Min Exi Min Mat Gar Mat Fac Fac Gar Fac Upp Upp War Used RIF Installer . | . . . . . . . . . . . . . . . . Robots Hacked . | . . . . . . . . . . . . . . . . Non-combat . | . . . . . . . . . . . . . . . . Combat . | . . . . . . . . . . . . . . . . Robot Hacks Applied . | . . . . . . . . . . . . . . . . Relay Couplers Released 35 | . . . . . . . 20 . 2 . 13 . . . . Machine Destruction 32 | . . . . . . . 17 . 2 . 13 . . . . Programmers 3 | . . . . . . . 3 . . . . . . . . Fabnet Peak Effective % . | . . . . . . . . . . . . . . . . Robots Rewired 7 | . . . . . . . 6 . . . . . 1 . . Allies Hacked . | . . . . . . . . . . . . . . . . Hacks Repelled . | . . . . . . . . . . . . . . . . Allies | -11 -10 -9 -9 -9 -8 -8 -8 -8 -7 -6 -6 -5 -5 -5 -5 -------- Run | Scr Mat Mat Min Exi Min Mat Gar Mat Fac Fac Gar Fac Upp Upp War Total Allies 7 | . . . . . . . 6 . . . . . 1 . . Largest Group 4 | . . . . . . . 4 2 . . . . 1 . . Highest-Rated Group 84 | . . . . . . . 84 65 . . . . 49 . . Highest-Rated Ally 49 | . . . . . . . 39 39 . . . . 49 . . Total Orders . | . . . . . . . . . . . . . . . . Ally Attacks 45 | . . . . . . . 39 6 . . . . . . . Total Damage 751 | . . . . . . . 692 59 . . . . . . . Kills 11 | . . . . . . . 10 1 . . . . . . . Allies Corrupted . | . . . . . . . . . . . . . . . . Allies Melted . | . . . . . . . . . . . . . . . . Intel | -11 -10 -9 -9 -9 -8 -8 -8 -8 -7 -6 -6 -5 -5 -5 -5 ------- Run | Scr Mat Mat Min Exi Min Mat Gar Mat Fac Fac Gar Fac Upp Upp War Robot Analysis Total 1 | . . . . . . 1 . . . . . . . . . Derelict Logs Recovered 5 | . . . 1 . . . . . . . . . 3 1 . Drone Launches . | . . . . . . . . . . . . . . . . Drone Recoveries . | . . . . . . . . . . . . . . . . Exploration | -11 -10 -9 -9 -9 -8 -8 -8 -8 -7 -6 -6 -5 -5 -5 -5 ------------- Run | Scr Mat Mat Min Exi Min Mat Gar Mat Fac Fac Gar Fac Upp Upp War Turns Passed 11493 | 49 53 113 159 545 255 73 2585 327 1796 134 1393 1097 819 616 1479 Spaces Moved 8233 | 57 67 198 364 517 237 60 1089 97 347 138 807 617 1033 1121 1484 Core 178 | 57 37 . . . . . 3 . . . . . . . 81 Treads 1508 | . . . . . . . 671 97 18 . 80 112 . 131 399 Legs 1760 | . . . . . . . . . . . . 23 815 856 66 Wheels 1783 | . 30 51 22 517 237 60 415 . 246 138 15 52 . . . Hover 1158 | . . . . . . . . . 83 . 712 . 108 . 255 Flight 1846 | . . 147 342 . . . . . . . . 430 110 134 683 Fastest Speed 25 | 50 50 29 29 95 95 95 110 160 87 87 68 65 42 30 25 Average Speed 89 | 50 63 42 32 103 103 108 202 242 279 87 100 79 50 39 31 Slowest Speed 1700 | 50 80 115 95 110 110 110 1700 400 400 87 143 143 69 43 100 Overloaded Moves . | . . . . . . . . . . . . . . . . Propulsion Burnouts . | . . . . . . . . . . . . . . . . Robots Hopped 5 | . . . . . . . . . . . . . . . 5 Cave-ins Triggered 1 | . . . . . . . . . . . . . . . 1 Exploration Rate (%) 49 | 4 18 28 71 87 45 10 94 14 14 4 88 20 95 98 94 Regions Visited 15 Branch Regions 6 Pre-discovered Areas 2 | . . . . . . . . . . . . . 2 . . Known Exits Taken 5 | . . . 1 . . 1 . 1 . 1 . 1 . . . Unknown Exits Taken 8 | 1 1 1 . 1 1 . . . 1 . . . 1 1 . Scrap Searched 9 | . . . 1 . . . . . . . . . 3 5 . Spaces Dug 96 | . 2 . 6 . . . . . 1 3 . 36 8 25 15 Terrain Destroyed 1016 | . 2 . 6 . . . 90 3 179 3 88 258 84 152 151 Melee 9 | . 2 . 6 . . . . . . . . . . . 1 Projectile 644 | . . . . . . . 16 1 87 3 14 137 84 152 150 AOE 363 | . . . . . . . 74 2 92 . 74 121 . . . Terrain Rammed . | . . . . . . . . . . . . . . . . Walls Destroyed . | . . . . . . . . . . . . . . . . Machines Disabled . | . . . . . . . . . . . . . . . . Actions | -11 -10 -9 -9 -9 -8 -8 -8 -8 -7 -6 -6 -5 -5 -5 -5 --------- Run | Scr Mat Mat Min Exi Min Mat Gar Mat Fac Fac Gar Fac Upp Upp War Total 11741 | 74 72 224 384 528 243 69 1397 148 1099 149 1289 1178 1323 1231 2333 Wait 2465 | 3 . . 1 1 . . 144 16 635 6 302 472 232 39 614 Move 8211 | 56 66 197 363 516 236 60 1088 96 346 138 806 616 1032 1120 1475 Hop 4 | . . . . . . . . . . . . . . . 4 Pick Up 118 | 9 1 10 3 6 3 2 24 7 5 1 15 9 6 3 14 Fast Attach 16 | . . 1 1 . . . 7 1 1 . . 1 1 . 3 Attach 47 | 4 1 5 . . . 3 10 2 3 . 4 2 1 2 10 Detach 30 | . . 3 . . . 2 3 3 7 . 2 3 1 . 6 Swap 12 | . 2 . 2 1 2 . . 1 . . 1 . . 1 2 Drop 102 | . . 5 . 4 . 2 24 2 23 1 . 8 6 3 24 Fire 597 | 2 . . . . . . 36 20 79 3 132 67 39 63 156 Melee 56 | . 2 3 11 . 2 . 13 . . . . . . . 25 Ram . | . . . . . . . . . . . . . . . . Kick . | . . . . . . . . . . . . . . . . Crush . | . . . . . . . . . . . . . . . . Escape Stasis 56 | . . . . . . . 29 . . . 27 . . . . Rewire 24 | . . . . . . . 19 . . . . . 5 . . Trap 3 | . . . 3 . . . . . . . . . . . . Miscellaneous . | . . . . . . . . . . . . . . . . Route ------- -11/Scrapyard -10/Materials -9/Materials -9/Mines (discovered 2 exits: *Mat / *Exi) -9/Exiles -8/Mines -8/Materials (discovered 4 exits: Fac x3 / Gar) -8/Garrison (discovered 3 exits: [*Mat x3]) -8/Materials -7/Factory (discovered 2 exits: *Fac x2) -6/Factory -6/Garrison (discovered 3 exits: *Fac x3) -5/Factory (discovered 3 exits: [*Fac] / *Upp x2) -5/Upper Caves -5/Upper Caves (discovered 2 exits: [*Fac] / *War) -5/Warlord (discovered 1 exit: [*Pro]) History --------- Turn | Location | Event 19 | -11/Scrapyard | Discovered new exit (range 15) 50 | -11/Scrapyard | Entered Materials 101 | -10/Materials | Discovered new exit (range 3) 103 | -10/Materials | Entered another Materials area 103 | -9/Materials | Evolved 2 slots: Propulsion x1, Utility x1 200 | -9/Materials | Discovered new exit (range 14) 216 | -9/Materials | Entered Mines 234 | -9/Mines | Found a damaged Exp. Sensor Array with a note attached 234 | -9/Mines | Found Prototype Device 234 | -9/Mines | Identified Exp. Sensor Array 242 | -9/Mines | Identified exit to Exiles 243 | -9/Mines | Met a Derelict bent on vengeance 262 | -9/Mines | Found a hidden stash of uninstalled traps 294 | -9/Mines | Discovered new exit (range 5) 372 | -9/Mines | Deemed a non-threat by the Exiles lab entrance 375 | -9/Mines | Entered Exiles 403 | -9/Exiles | Met 8R-AWN 419 | -9/Exiles | Met EX-HEX 447 | -9/Exiles | Met EX-BIN 457 | -9/Exiles | Aligned with FarCom system 458 | -9/Exiles | Given EX-Vault access code 481 | -9/Exiles | Opened EX-Vault 486 | -9/Exiles | Found AWS/Autocannon 507 | -9/Exiles | Warned to stay clear of 0b10 Research branches 532 | -9/Exiles | Met EX-DEC 566 | -9/Exiles | Discovered new exit (range 11) 632 | -9/Exiles | Build established: Mutant 754 | -9/Exiles | Visited The Gauntlet 920 | -9/Exiles | Left Exiles lab with AWS/Autocannon 920 | -9/Exiles | Entered Mines 936 | -8/Mines | Discovered new exit (range 14) 1175 | -8/Mines | Entered Materials 1175 | -8/Materials | Evolved 2 slots: Utility x1, Weapon x1 1185 | -8/Materials | Identified exit to Factory 1248 | -8/Materials | Identified exit to Garrison 1248 | -8/Materials | Entered Garrison 1288 | -8/Garrison | Learned Materials security intel 1462 | -8/Garrison | Triggered checkpoint 1494 | -8/Garrison | Garrison Relay disabled 1557 | -8/Garrison | Build established: Hacker-Skirmisher 1793 | -8/Garrison | Discovered new exit (range 10) 1850 | -8/Garrison | Triggered checkpoint 2028 | -8/Garrison | Triggered checkpoint 2398 | -8/Garrison | Build established: Hacker-Mutant 2420 | -8/Garrison | Triggered checkpoint 2599 | -8/Garrison | Discovered new exit (range 11) 2848 | -8/Garrison | Triggered checkpoint 2874 | -8/Garrison | Garrison Relay disabled 3136 | -8/Garrison | Triggered checkpoint 3184 | -8/Garrison | Garrison Relay disabled 3215 | -8/Garrison | Phase Generator disabled 3523 | -8/Garrison | Build established: Hacker-Skirmisher 3540 | -8/Garrison | Triggered checkpoint 3616 | -8/Garrison | Triggered checkpoint 3634 | -8/Garrison | Discovered new exit (range 13) 3716 | -8/Garrison | Triggered checkpoint 3724 | -8/Garrison | Garrison Relay disabled 3833 | -8/Garrison | Entered Materials 3833 | -8/Materials | Accompanied by 2 allies 3968 | -8/Materials | Garrison activated, responded to threat 4071 | -8/Materials | Discovered exit to Factory (range 16) 4160 | -8/Materials | Entered Factory 4160 | -7/Factory | Evolved 2 slots: Power x1, Propulsion x1 4165 | -7/Factory | Found Scrap Engine 4444 | -7/Factory | Garrison activated, responded to threat 4461 | -7/Factory | Build established: Hauler-Mutant 4560 | -7/Factory | First assault squad dispatched 4659 | -7/Factory | Destroyed 9 combat bots 4806 | -7/Factory | Build established: Hauler-Construct 5548 | -7/Factory | Discovered new exit (range 7) 5717 | -7/Factory | Fabricated Gauss Cannon (x2) 5926 | -7/Factory | Discovered new exit (range 16) 5956 | -7/Factory | Entered another Factory area 5956 | -6/Factory | Evolved 2 slots: Propulsion x1, Utility x1 5983 | -6/Factory | Lost 3 parts (1p1n1u) 6090 | -6/Factory | Identified exit to Garrison 6090 | -6/Factory | Entered Garrison 6271 | -6/Garrison | Build established: Mutant 6306 | -6/Garrison | Triggered checkpoint 6331 | -6/Garrison | Discovered new exit (range 12) 6427 | -6/Garrison | Phase Generator disabled 6599 | -6/Garrison | Build established: Construct 6638 | -6/Garrison | Garrison Relay disabled 6740 | -6/Garrison | Triggered checkpoint 6803 | -6/Garrison | Destroyed 8 combat bots 6885 | -6/Garrison | Triggered checkpoint 6919 | -6/Garrison | Triggered checkpoint 6944 | -6/Garrison | Garrison Relay disabled 7022 | -6/Garrison | Discovered new exit (range 15) 7022 | -6/Garrison | Spotted B-86 Titan 7028 | -6/Garrison | Destroyed B-86 Titan 7149 | -6/Garrison | Destroyed B-90 Cyclops 7165 | -6/Garrison | Found Quantum Capacitor 7198 | -6/Garrison | Destroyed B-90 Cyclops 7209 | -6/Garrison | Found Quantum Capacitor 7351 | -6/Garrison | Triggered checkpoint 7384 | -6/Garrison | Garrison Relay disabled 7400 | -6/Garrison | Triggered checkpoint 7453 | -6/Garrison | Discovered new exit (range 15) 7483 | -6/Garrison | Entered Factory 7483 | -5/Factory | Evolved 2 slots: Power x1, Propulsion x1 7783 | -5/Factory | First assault squad dispatched 8007 | -5/Factory | Identified exit to Upper Caves 8153 | -5/Factory | Fabricated Imp. Fusion Compressor? 8220 | -5/Factory | Discovered new exit (range 13) 8411 | -5/Factory | Fabricated Point Defense Array? 8492 | -5/Factory | Destroyed 9 combat bots 8580 | -5/Factory | Entered Upper Caves 8587 | -5/Upper Caves | Met a Warlord Commander 8588 | -5/Upper Caves | Learned location of Warlord (-5) 8589 | -5/Upper Caves | Found Encrypted Comm Array 8628 | -5/Upper Caves | Encountered a Warlord checkpoint 8629 | -5/Upper Caves | Learned Factory terminal intel 8699 | -5/Upper Caves | Learned Factory stockpile data 8706 | -5/Upper Caves | Attracted the attention of an 0b10 checkpoint 8769 | -5/Upper Caves | Build established: Generator-Construct 9004 | -5/Upper Caves | Discovered new exit (range 4) 9399 | -5/Upper Caves | Entered another Upper Caves area 9402 | -5/Upper Caves | Discovered new exit (range 7) 9403 | -5/Upper Caves | Learned 8 Factory zone layouts 9420 | -5/Upper Caves | Spotted B-75 Beast 9422 | -5/Upper Caves | Destroyed B-75 Beast 9597 | -5/Upper Caves | Attracted the attention of an 0b10 outpost 9639 | -5/Upper Caves | Discovered new exit (range 4) 9646 | -5/Upper Caves | Destroyed 9 combat bots 10015 | -5/Upper Caves | Entered Warlord 10038 | -5/Warlord | Discovered new exit (range 14) 10062 | -5/Warlord | System corruption cleaned by Quarantine Array 10081 | -5/Warlord | Found Prototype Device 10081 | -5/Warlord | Identified Minesniffer Drone Bay 10086 | -5/Warlord | Found Minesniffer Drone Bay 10087 | -5/Warlord | Found Minesniffer Drone Bay 10089 | -5/Warlord | Found Minesniffer Drone Bay 10090 | -5/Warlord | Found Minesniffer Drone Bay 10158 | -5/Warlord | Received a Watcher feed algorithm from an ecstatic Tinkerer 10165 | -5/Warlord | Met Warlord 10190 | -5/Warlord | Warlord's base attacked by MAIN.C 10193 | -5/Warlord | Found Prototype Hackware 10194 | -5/Warlord | Identified System Mapper 10198 | -5/Warlord | Found Prototype Processor 10255 | -5/Warlord | Found Prototype Device 10380 | -5/Warlord | Found Prototype Piercing Weapon 10448 | -5/Warlord | Spotted B-86 Titan 10450 | -5/Warlord | Spotted B-75 Beast 10465 | -5/Warlord | Warlord forces counterattacked 10534 | -5/Warlord | Spotted Executioner 10536 | -5/Warlord | Destroyed Executioner 10565 | -5/Warlord | Destroyed 12 combat bots 10600 | -5/Warlord | Spotted Striker 10691 | -5/Warlord | Spotted Striker 10691 | -5/Warlord | Spotted Striker 10791 | -5/Warlord | P-80 Master assimilated allied MA-8AU(g) 10830 | -5/Warlord | Destroyed 7 combat bots 10865 | -5/Warlord | Warlord base infiltrated, sounded retreat 10895 | -5/Warlord | Spotted Striker 10898 | -5/Warlord | Spotted Executioner 10906 | -5/Warlord | Destroyed Executioner 11002 | -5/Warlord | Spotted Striker 11022 | -5/Warlord | Destroyed Striker 11076 | -5/Warlord | Destroyed Striker 11077 | -5/Warlord | Spotted Striker 11086 | -5/Warlord | Spotted Striker 11087 | -5/Warlord | Destroyed Striker 11131 | -5/Warlord | Spotted Striker 11142 | -5/Warlord | Destroyed Striker 11152 | -5/Warlord | Spotted Striker 11161 | -5/Warlord | System corruption reached 10% 11173 | -5/Warlord | Destroyed Striker 11186 | -5/Warlord | Destroyed Striker 11191 | -5/Warlord | Identified Vortex Lance 11264 | -5/Warlord | Destroyed 32 combat bots 11403 | -5/Warlord | Spotted Striker 11411 | -5/Warlord | Crushed by falling debris 11417 | -5/Warlord | Core integrity fell below 50% 11423 | -5/Warlord | Spotted Striker 11423 | -5/Warlord | Spotted Executioner 11426 | -5/Warlord | Spotted Striker 11429 | -5/Warlord | Spotted Executioner 11451 | -5/Warlord | Spotted Executioner 11470 | -5/Warlord | Core integrity fell below 20% 11473 | -5/Warlord | Spotted Executioner 11481 | -5/Warlord | Lost 13 parts (4p6n1u2w) 11483 | -5/Warlord | System corruption reached 30% 11494 | -5/Warlord | Smashed by cave-in Last Messages --------------- 11459_ S-27 Virus destroyed. 11461_ System corrupted: Matter fused (-10). 11465_ Scrap Engine consumes Hvy. Armor Plating. 11466_ Acquired 10 matter. 11469_ Scrap Engine consumes Corrupted Unknown Hover Unit. 11478_ P-80 Master resets I-47 Archangel, system corruption cleaned. 11479_ System corrupted: Imp. Thermal Shield rejected. 11479_ Chain reaction triggered in Lgt. Quantum Reactor. 11479_ Striker destroyed. 11480_ ANNOUNCEMENT: MAIN.C reinforcements approaching through caves, arriving soon. 11481_ Scrap Engine consumes Beamcaster. 11482_ Door malfunctions. 11484_ Scrap Engine consumes Beamcaster. 11490_ ANNOUNCEMENT: Detected 1 Hunter squad, 1 Programmer squad, 1 Saboteur squad, 1 Grunt squad, with prototype support. 11493_ Scrap Engine destroyed. 11494_ System corruption misinterpreted. 11494_ Triggered Fire Trap. 11494_ Burning plasma bursts from the floor. Map ----- +----------------------------------------------------+ | ???# """ ######## # !!## |!!## # | | ???# """ #??????# *!!# # !!#%%" | | ???# "" #??????# [%= # ### " | | ???# "" #??????# # # # # ### # | | ???# ######## [%=#= # # ## # | | ???# *!=*% !%%![ # | | ???#+##### ##### #### #### #### | | ?? ??# #???# #! ### ##??? | | ?# #?# #??# % #???# | | ?# #?#### #???#### # ##### | | ?# #????# #??????# | | ?# #????# #?????# ###### | | ?# #????# #???# ##?###" | | ?# ######+###?? # # #" ## " | | ?####### #?? """"#"""""" | | ???????#""" #?? " !% " | | ???????#""" #???"" " " | | ???????#""" #??"" " " | | ???????# #?#""" " " | | ???????#""" #?#""" " = " | | ???????#""" #?#"" # " | | ???????#""" #?# "" # " | | ???????# #?# " " | | ????########+#########+######/##"""### | | ????# ^ s p % | | ????# @ K | | ????###+###################+#########+ | | ????? ??????????????? ???# | | ??? ???????????# ?# """ | | ??# #??????????# ## """ | | ??# #??????????# ## """ | | ??# #??????????# ## | | ??# #??????????# ## """ | | ??# #??????????# ## """ | | ??# #??????????# ## """ | | ??###########??????????# ## | | ???????????????????????############### | | ????????????????????????########?????# | | ????????????????????????#""""X #??#### | | ????????????????????????#"" " #### ## | | ????????????????????????#"" + | | ????????????????????????#"" "" #### ## | | ????????????????????????#""""" #??# #? | | ????????????????????????########??# #? | | ???????????????????????????####???# #? | | ???????????????????????????# ?### ## | | ???????????????????????????# # | | ???????????????????????????# # | | ???????????????????????????# / | | ???????????????????????????###### | +----------------------------------------------------+ Best States ------------- Heat Dissipation 71 Energy Generation 113 Energy Capacity 2232 Matter Stores 300 Matter Capacity 300 Sight Range 16 Robot Scan Range 20 Terrain Scan Density 10 Jamming Range 12 Additional Mass Support 6 Armor Coverage 225 Resistance: KI 25 Resistance: TH 25 Weapon Cycling 20 Evasion (%) 66 Target Analysis 5 Recoil Reduction 6 Offensive Hacking 20 Defensive Hacking 20 Authchip Count 7 Item Schematics ----------------- Point Defense Array | -5/Factory | Hacked Robot Schematics ------------------ None Fabricated ------------ Gauss Cannon | x2 | -7/Factory | Preloaded Imp. Fusion Compressor | x2 | -5/Factory | Preloaded Point Defense Array | x2 | -5/Factory Alien Tech Used ----------------- None Achievements -------------- None Challenges ------------ None Game ------ Seed LargeScrapTreads Manual? 0 Play Time 02:06:25 Cumulative 279.2 hours Start 2022.09.07 @ 11:44:03 End 2022.09.07 @ 16:17:51 Sessions 1 Manual Loads 0 Difficulty Rogue Special Mode None Game No. 325 Rogue 325 Adventurer 0 Explorer 0 Win Type - Total 0 Types 0/0/0/0/0/0/0/0/0 Lore% 43 Gallery% 70 Achievement% 58 Wizard Run 0 Options --------- ASCII 0 Keyboard 0 Movement Mouse Keybinds 0 Fullscreen 2 Font 24/Smallcaps Map View 76x50 Tactical HUD 1 Map Filters NONE Filters NONE Steam 1 RUN: 24a34d06-49e2-4fea-b08d-9e3caccd2684